bitfinex-derivatives/quotes_SOLF0:USTF0_20250817
["timestamp","ask_amount","ask_price","bid_price","bid_amount"]
[1755441843196,3.02,194.02,193.96,2.9]
[1755441849596,3.02,194.02,193.93,2.60116895]
[1755441849796,3.02,194.02,193.93,5.50116895]
[1755441849992,3.67872876,194.01,193.93,5.50116895]
[1755441850296,3.02,194.0,193.93,5.50116895]
[1755441850697,3.02,194.0,193.94,2.9]
[1755441852997,3.02,194.05,193.96,2.60116895]
[1755441853198,3.02,194.03,193.97,2.9]
[1755441856501,3.02,194.03,193.95,2.9]
[1755441856706,3.02,194.01,193.93,5.50116895]
[1755441857002,3.02,193.99,193.93,2.60116895]
[1755441857203,3.02,193.99,193.94,2.9]
[1755441857396,3.02,193.99,193.93,2.60116895]
[1755441857602,3.02,193.99,193.95,2.9]
[1755441858604,3.02,193.99,193.93,2.60116895]
[1755441858605,3.02,193.99,193.94,2.8]
[1755441860207,2.84,193.98,193.94,2.8]
[1755441860811,2.84,194.06,193.94,2.8]
[1755441861003,9.51867079,194.05,193.94,2.8]
[1755441861207,9.51867079,194.04,193.94,2.8]
[1755441861407,2.84,194.02,193.94,2.8]
[1755441861706,2.84,194.0,193.94,2.8]
[1755441866508,2.84,194.0,193.94,2.60116895]
[1755441866708,2.84,194.0,193.96,2.8]
[1755441869611,2.84,194.0,193.97,2.8]
[1755441870209,2.84,194.07,193.95,2.8]
[1755441870403,2.84,194.05,193.95,2.8]
[1755441870602,8.27822651,194.04,193.95,2.8]
[1755441870803,2.84,194.02,193.95,2.8]
[1755441873618,2.84,194.0,193.95,2.8]
[1755441873913,2.84,193.99,193.95,2.8]
[1755441875112,2.84,194.07,193.95,2.8]
[1755441875314,2.60116895,194.08,193.95,2.8]
[1755441875315,2.84,194.05,193.95,2.8]
[1755441875517,2.84,194.03,193.95,2.8]
[1755441875811,2.84,194.01,193.95,2.8]
[1755441877013,2.84,194.07,193.95,2.8]
[1755441877208,2.84,194.05,193.97,2.60116895]
[1755441877418,2.84,194.03,193.98,2.8]
[1755441878211,2.84,194.03,193.97,2.60116895]
[1755441878418,2.84,194.03,194.0,2.8]
[1755441882014,2.84,194.1,193.98,2.8]
[1755441882220,2.84,194.08,193.98,2.8]
[1755441882423,2.84,194.06,193.98,2.8]
[1755441882622,2.60116895,194.11,193.98,2.8]
[1755441882623,2.84,194.04,193.98,2.8]
[1755441885320,2.84,194.04,194.0,2.60116895]
[1755441885521,2.84,194.03,194.01,2.8]
[1755441885725,2.60116895,194.12,194.0,2.60116895]
[1755441885922,12.27658028,194.11,194.0,2.60116895]
[1755441886123,2.84,194.09,194.0,2.60116895]
[1755441886318,2.84,194.07,194.01,2.8]
[1755441886518,8.27923304,194.06,194.01,2.8]
[1755441886718,2.84,194.05,194.01,2.8]
[1755441889430,2.84,194.05,194.0,2.60116895]
[1755441889731,2.84,194.05,193.99,2.95]
[1755441891421,3.73482846,194.04,193.99,2.95]
[1755441891621,2.84,194.05,193.99,2.95]
[1755441891827,2.94,194.03,193.98,2.95]
[1755441893324,2.94,194.03,193.98,5.55116895]
[1755441893521,2.94,194.03,193.99,2.95]
[1755441893926,2.94,194.03,193.98,2.60116895]
[1755441894124,2.94,194.03,194.0,2.95]
[1755441894429,2.94,194.03,193.98,2.60116895]
[1755441894630,2.94,194.03,193.98,2.95]
[1755441895027,2.94,194.03,193.99,2.95]
[1755441897831,2.94,194.03,193.97,5.55116895]
[1755441898628,2.94,194.03,193.98,2.95]
[1755441899029,2.94,194.03,193.97,2.60116895]
[1755441899232,2.94,194.03,193.99,2.95]
[1755441899934,2.94,194.03,194.0,2.95]
[1755441900532,2.94,194.03,193.98,2.95]
[1755441900832,2.94,194.03,193.97,2.60116895]
[1755441901040,2.94,194.03,193.98,2.95]
[1755441901635,2.94,194.02,193.98,2.95]
[1755441902134,2.94,194.01,193.98,2.95]
[1755441907133,2.94,194.12,194.01,2.95]
[1755441907334,2.94,194.1,194.04,2.95]
[1755441907535,2.60116895,194.17,194.04,2.95]
[1755441907536,8.341326,194.09,194.04,2.95]
[1755441907733,8.341326,194.09,194.03,2.60116895]
[1755441907734,3.73401385,194.08,194.03,2.60116895]
[1755441907933,2.94,194.07,194.05,2.95]
[1755441909134,2.94,194.07,194.03,2.60116895]
[1755441909329,2.60116895,194.14,193.96,128.46]
[1755441909534,2.94,194.1,193.99,2.95]
[1755441909740,2.94,194.08,193.99,2.95]
[1755441909939,2.94,194.06,193.99,2.95]
[1755441910141,3.7329265,194.05,193.99,2.95]
[1755441910341,2.94,194.04,194.0,2.95]
[1755441910541,2.94,194.04,194.01,2.95]
[1755441910847,29.01749743,194.53,194.01,2.95]
[1755441910848,2.94,194.1,194.01,2.95]
[1755441911046,2.94,194.08,194.01,2.95]
[1755441911344,2.94,194.06,194.01,2.95]
[1755441911846,2.94,194.06,194.0,2.60116895]
[1755441912238,2.94,194.06,194.0,5.55116895]
[1755441912838,2.94,194.06,194.01,2.95]
[1755441913038,2.94,194.05,194.01,2.95]
[1755441913239,2.94,194.04,194.01,2.95]
[1755441914144,2.94,194.03,194.01,2.95]
[1755441914341,2.94,194.12,194.01,2.95]
[1755441914649,2.60116895,194.13,194.01,2.95]
[1755441914650,2.94,194.1,194.01,2.95]
[1755441914840,2.94,194.08,194.01,2.95]
[1755441917340,2.94,194.08,194.03,2.60116895]
[1755441917543,2.94,194.13,194.03,2.60116895]
[1755441917747,2.81,194.11,194.04,2.74]
[1755441917943,2.81,194.09,194.04,2.74]
[1755441918151,2.81,194.09,194.03,2.60116895]
[1755441918450,2.81,194.09,194.04,2.74]
[1755441920343,2.81,194.09,194.02,2.74]
[1755441921346,2.81,194.07,193.98,5.34116895]
[1755441921546,2.81,194.05,193.98,2.60116895]
[1755441921747,2.81,194.05,193.99,2.74]
[1755441930054,2.81,194.04,194.02,2.74]
[1755441930241,2.81,194.06,194.02,2.74]
[1755441930440,2.81,194.05,194.02,2.74]
[1755441930646,2.81,194.07,194.02,2.74]
[1755441930854,5.41116895,194.13,194.01,2.60116895]
[1755441931053,9.62768835,194.12,194.01,2.60116895]
[1755441931255,2.81,194.1,194.01,5.34116895]
[1755441931555,2.81,194.08,194.01,5.34116895]
[1755441931754,2.81,194.06,194.01,5.34116895]
[1755441931957,2.60116895,194.13,194.02,2.74]
[1755441932148,2.81,194.11,194.02,2.74]
[1755441932344,8.33982773,194.1,194.02,2.74]
[1755441932544,2.60116895,194.16,194.02,2.74]
[1755441932545,2.81,194.08,194.02,2.74]
[1755441934657,2.81,194.08,194.01,2.60116895]
[1755441934952,3.72882814,194.07,194.0,5.34116895]
[1755441935149,2.81,194.06,194.0,5.34116895]
[1755441935351,2.81,194.08,194.04,2.74]
[1755441935553,2.81,194.07,194.04,2.74]
[1755441935953,2.81,194.15,194.04,2.74]
[1755441936155,2.81,194.13,194.04,2.74]
[1755441936349,2.81,194.11,194.03,2.60116895]
[1755441936553,2.81,194.09,194.03,2.60116895]
[1755441936754,8.33872261,194.08,194.03,2.60116895]
[1755441936952,2.81,194.07,194.03,5.34116895]
[1755441937351,2.81,194.07,194.01,2.74]
[1755441937550,3.72917127,194.06,194.0,2.60116895]
[1755441937750,2.81,194.05,194.0,2.60116895]
[1755441937951,2.81,194.05,194.01,2.74]
[1755441938252,2.81,194.05,194.0,2.60116895]
[1755441938455,2.81,194.04,194.0,2.60116895]
[1755441938850,2.81,194.04,194.03,2.74]
[1755441939557,5.80349948,194.17,194.0,2.60116895]
[1755441939758,2.81,194.03,194.02,2.74]
[1755441940152,2.81,194.06,194.02,2.74]
[1755441940353,2.81,194.06,194.04,2.74]
[1755441940548,2.81,194.08,194.04,2.74]
[1755441940857,2.81,194.07,194.04,2.74]
[1755441941260,5.80349948,194.19,194.05,2.74]
[1755441941558,2.81,194.06,194.05,2.74]
[1755441945558,2.81,194.16,194.03,2.60116895]
[1755441945760,2.81,194.14,194.03,2.60116895]
[1755441946059,2.81,194.12,194.03,5.34116895]
[1755441946261,2.81,194.1,194.03,5.34116895]
[1755441946565,2.81,194.08,194.03,5.34116895]
[1755441946856,2.81,194.08,194.04,2.74]
[1755441947557,2.81,194.08,194.04,2.99]
[1755441947758,2.81,194.08,194.05,2.99]
[1755441950261,2.87,194.16,194.04,2.99]
[1755441950455,2.87,194.14,194.04,2.99]
[1755441950657,9.63085847,194.13,194.04,2.99]
[1755441950856,2.87,194.11,194.04,2.99]
[1755441951157,2.87,194.09,194.04,2.99]
[1755441952863,2.87,194.16,194.04,2.99]
[1755441953171,2.87,194.14,194.04,2.99]
[1755441953363,2.87,194.12,194.04,2.99]
[1755441953562,2.87,194.1,194.04,2.99]
[1755441953864,2.87,194.08,194.04,2.99]
[1755441954664,2.60116895,194.17,194.04,2.99]
[1755441954964,2.87,194.15,194.04,2.99]
[1755441955264,2.87,194.13,194.04,2.99]
[1755441955468,2.87,194.11,194.04,2.99]
[1755441955656,2.87,194.09,194.04,2.99]
[1755441956560,2.87,194.09,194.05,2.99]
[1755441957561,2.87,194.09,194.03,2.60116895]
[1755441957755,2.87,194.09,194.06,2.99]
[1755441958761,2.87,194.09,194.05,2.99]
[1755441959264,2.87,194.09,194.03,5.59116895]
[1755441959665,2.87,194.09,194.03,2.99]
[1755441960064,2.87,194.09,194.0,128.06]
[1755441960257,3.72772898,194.08,194.01,2.99]
[1755441960464,2.87,194.07,194.01,2.99]
[1755441962163,8.34642729,194.06,194.0,2.60116895]
[1755441962374,2.87,194.05,193.99,2.99]
[1755441962669,2.87,194.05,193.97,74.11665684]
[1755441962966,2.87,194.05,193.97,68.52548789]
[1755441963172,2.87,194.03,193.97,68.52548789]
[1755441964371,2.87,194.1,193.99,2.99]
[1755441964569,2.87,194.08,193.99,2.99]
[1755441964761,2.87,194.06,193.99,2.99]
[1755441964962,2.87,194.04,194.0,2.99]
[1755441965361,2.87,194.04,193.98,2.99]
[1755441965769,2.87,194.14,193.97,68.52548789]
[1755441965967,2.87,194.12,194.03,2.99]
[1755441966159,2.60116895,194.15,194.02,2.60116895]
[1755441966160,2.87,194.1,194.02,2.60116895]
[1755441966364,2.87,194.08,194.0,2.99]
[1755441966570,2.87,194.06,194.0,2.99]
[1755441966770,3.72754258,194.05,193.99,5.59116895]
[1755441966970,2.87,194.11,193.99,5.59116895]
[1755441967170,2.87,194.09,193.99,5.59116895]
[1755441967371,2.60116895,194.12,194.0,2.99]
[1755441967372,2.87,194.07,194.0,2.99]
[1755441967670,2.87,194.05,194.0,2.99]
[1755441967865,2.87,194.04,194.0,2.99]
[1755441968060,2.87,194.06,194.0,2.99]
[1755441968266,2.87,194.05,194.03,2.99]
[1755441968465,2.87,194.12,194.03,2.99]
[1755441968671,2.87,194.1,194.05,2.60116895]
[1755441968868,2.87,194.08,194.06,2.99]
[1755441969074,5.80349948,194.21,194.07,2.99]
[1755441969370,2.87,194.19,194.09,2.60116895]
[1755441969570,2.87,194.17,194.08,2.99]
[1755441969874,2.87,194.15,194.05,2.99]
[1755441970075,2.87,194.13,194.05,2.99]
[1755441970276,2.87,194.11,194.05,2.99]
[1755441970974,3.72629936,194.1,194.04,2.60116895]
[1755441971174,3.72652615,194.09,194.04,2.60116895]
[1755441971373,2.87,194.08,194.04,5.59116895]
[1755441971566,2.87,194.08,194.05,2.99]
[1755441971867,2.87,194.15,194.04,2.60116895]
[1755441972070,2.87,194.13,194.04,2.60116895]
[1755441972266,2.87,194.11,194.05,2.99]
[1755441975383,2.87,194.11,194.08,2.99]
[1755441975882,2.87,194.12,194.08,2.99]
[1755441976381,2.87,194.19,194.08,2.99]
[1755441976580,2.87,194.17,194.08,2.99]
[1755441976782,2.87,194.15,194.08,2.99]
[1755441976984,2.87,194.13,194.08,2.99]
[1755441977174,2.87,194.11,194.06,2.60116895]
[1755441977374,2.87,194.11,194.06,5.59116895]
[1755441977581,2.87,194.11,194.05,2.60116895]
[1755441977784,2.87,194.11,194.07,2.88]
[1755441977982,2.87,194.11,194.08,2.88]
[1755441978185,2.76,194.17,194.08,2.88]
[1755441978388,2.76,194.15,194.08,5.48116895]
[1755441978686,2.76,194.13,194.1,2.88]
[1755441978886,2.76,194.12,194.1,2.88]
[1755441979084,0.89656061,194.22,194.08,2.60116895]
[1755441979282,2.76,194.2,194.12,2.88]
[1755441979587,2.76,194.18,194.12,2.88]
[1755441979778,2.76,194.16,194.12,2.88]
[1755441979983,2.76,194.16,194.11,5.48116895]
[1755441980182,2.76,194.16,194.12,2.88]
[1755441980386,2.76,194.15,194.12,2.88]
[1755441980581,2.76,194.21,194.12,2.88]
[1755441980779,2.76,194.19,194.12,2.88]
[1755441981081,2.76,194.17,194.12,2.88]
[1755441981588,2.76,194.24,194.14,5.48116895]
[1755441981784,2.76,194.22,194.14,5.48116895]
[1755441981986,11.08615789,194.21,194.15,2.88]
[1755441982190,2.76,194.23,194.18,2.88]
[1755441982387,2.76,194.22,194.18,2.88]
[1755441982575,2.60116895,194.3,194.18,2.88]
[1755441982775,3.71265735,194.29,194.19,2.60116895]
[1755441982989,2.76,194.22,194.21,2.88]
[1755441983593,2.76,194.29,194.21,2.88]
[1755441983789,2.76,194.27,194.21,2.88]
[1755441984592,2.76,194.27,194.19,2.60116895]
[1755441984787,2.76,194.27,194.19,5.48116895]
[1755441986295,2.76,194.27,194.2,2.88]
[1755441986592,2.76,194.26,194.22,2.60116895]
[1755441986789,346.08,194.35,194.23,2.88]
[1755441986790,2.76,194.28,194.23,2.88]
[1755441986994,2.76,194.34,194.23,2.88]
[1755441987193,2.76,194.32,194.23,2.88]
[1755441988696,2.76,194.32,194.22,2.60116895]
[1755441989198,8.25646337,194.31,194.21,2.88]
[1755441989400,11.01445871,194.3,194.19,5.48116895]
[1755441989698,2.76,194.3,194.2,2.88]
[1755441991793,2.60116895,194.3,194.18,5.48116895]
[1755441992099,2.76,194.28,194.19,2.88]
[1755441993497,2.76,194.26,194.16,2.88]
[1755441993699,2.76,194.23,194.12,2.60116895]
[1755441993899,2.76,194.23,194.13,2.88]
[1755441994197,2.76,194.2,194.1,2.88]
[1755441994590,2.76,194.18,194.1,2.88]
[1755441996000,2.76,194.18,194.08,2.88]
[1755441996300,2.76,194.16,194.08,2.88]
[1755441998102,2.76,194.16,194.05,2.88]
[1755441998302,2.76,194.13,194.05,2.88]
[1755441998612,2.60116895,194.11,194.03,2.88]
[1755441998801,2.76,194.1,194.03,2.88]
[1755442003904,2.76,194.1,194.0,2.88]
[1755442004109,2.76,194.08,194.0,2.88]
[1755442005999,5.80349948,194.19,194.03,2.60116895]
[1755442006202,2.76,194.16,194.04,2.88]
[1755442006406,2.76,194.14,194.04,2.88]
[1755442008006,2.76,194.14,194.07,2.8]
[1755442008207,345.96,194.21,194.1,2.8]
[1755442008208,2.82,194.2,194.1,2.8]
[1755442008406,2.82,194.18,194.1,2.8]
[1755442012408,2.82,194.18,194.07,2.8]
[1755442012609,2.82,194.16,194.07,2.8]
[1755442024717,2.82,194.16,194.04,4.04257189]
[1755442024718,2.82,194.16,194.05,2.8]
[1755442028727,2.82,194.14,194.03,2.8]
[1755442030422,5.42112805,194.14,194.03,2.8]
[1755442030622,2.82,194.13,194.03,2.8]
[1755442033530,2.82,194.11,194.03,2.8]
[1755442035438,4.58159322,194.1,194.03,2.8]
[1755442035636,2.82,194.09,194.03,2.8]
[1755442039445,4.59170768,194.08,194.03,2.8]
[1755442039737,3.03,194.13,194.03,2.8]
[1755442040042,3.03,194.11,194.03,2.8]
[1755442040231,8.31006018,194.1,194.03,2.8]
[1755442040432,8.31006018,194.09,194.03,2.8]
[1755442040636,4.59234843,194.08,194.03,2.8]
[1755442040938,3.03,194.06,194.03,2.8]
[1755442042545,3.03,194.13,194.02,3.01]
[1755442042742,3.03,194.11,194.02,3.01]
[1755442042938,3.03,194.09,194.02,3.01]
[1755442043243,3.03,194.07,194.03,3.01]
[1755442043636,3.03,194.07,194.04,3.01]
[1755442044140,3.03,194.07,194.01,2.60112805]
[1755442044141,3.03,194.07,193.97,3.01]
[1755442044340,3.03,194.07,194.0,3.01]
[1755442049948,3.03,194.12,194.05,2.60112805]
[1755442050146,3.03,194.09,194.06,3.01]
[1755442050649,3.03,194.11,194.07,3.01]
[1755442050849,3.03,194.13,194.09,3.01]
[1755442051049,3.03,194.15,194.09,3.01]
[1755442051444,0.03447676,194.13,194.09,3.04285119]
[1755442052047,0.03447676,194.13,194.12,3.01]
[1755442053042,3.03,194.17,194.12,3.01]
[1755442053241,3.03,194.19,194.15,3.01]
[1755442053441,3.03,194.18,194.15,3.01]
[1755442054247,3.03,194.18,194.16,3.01]
[1755442054459,3.03,194.25,194.15,0.03416246]
[1755442054659,3.71258285,194.24,194.15,0.03416246]
[1755442054863,9.58981255,194.23,194.15,0.03416246]
[1755442055057,12.61981255,194.22,194.15,0.03416246]
[1755442055251,3.03,194.2,194.15,0.03416246]
[1755442055458,3.03,194.18,194.15,0.03416246]
[1755442057461,3.03,194.18,194.15,3.04416246]
[1755442057758,3.03,194.23,194.15,3.04416246]
[1755442057959,9.58650808,194.22,194.15,3.04416246]
[1755442058156,3.03,194.2,194.15,3.04416246]
[1755442058464,3.03,194.19,194.15,3.04416246]
[1755442058661,3.03,194.18,194.15,3.04416246]
[1755442058863,3.03,194.2,194.15,3.04416246]
[1755442059057,3.03,194.19,194.15,3.04416246]
[1755442059261,127.9,194.26,194.15,3.04416246]
[1755442059459,8.29429823,194.25,194.15,3.04416246]
[1755442059662,3.70864917,194.24,194.15,3.04416246]
[1755442059962,3.03,194.22,194.15,3.01]
[1755442060165,3.03,194.22,194.18,0.03900854]
[1755442060458,3.03,194.21,194.2,3.01]
[1755442061763,2.60112805,194.27,194.18,0.03900854]
[1755442061960,3.03,194.25,194.18,0.03900854]
[1755442062156,3.03,194.23,194.18,0.03900854]
[1755442062865,3.70364081,194.22,194.18,0.03900854]
[1755442063061,3.03,194.23,194.18,0.03900854]
[1755442064861,3.03,194.23,194.19,3.01]
[1755442065165,3.03,194.26,194.19,3.01]
[1755442065367,3.03,194.24,194.18,0.03900854]
[1755442068167,3.03,194.24,194.18,2.78900854]
[1755442074467,3.03,194.24,194.18,2.64013659]
[1755442074666,2.78,194.26,194.19,2.75]
[1755442075066,2.78,194.26,194.22,2.75]
[1755442075262,2.78,194.28,194.22,2.75]
[1755442076765,2.78,194.34,194.22,2.75]
[1755442076968,2.78,194.32,194.22,2.75]
[1755442077466,2.78,194.32,194.25,0.03762626]
[1755442077670,2.78,194.32,194.26,2.75]
[1755442080975,2.78,194.32,194.28,2.75]
[1755442081279,2.78,194.31,194.28,2.75]
[1755442081471,2.78,194.31,194.29,2.75]
[1755442081776,2.78,194.3,194.29,2.75]
[1755442082374,2.78,194.39,194.29,2.75]
[1755442083168,2.78,194.39,194.32,0.03332787]
[1755442084379,4.54689964,194.38,194.32,0.03332787]
[1755442084581,2.78,194.37,194.32,0.03332787]
[1755442086775,2.78,194.35,194.32,0.03332787]
[1755442086982,4.54445889,194.34,194.32,0.03332787]
[1755442087177,2.78,194.33,194.32,0.03332787]
[1755442088981,2.78,194.32,194.24,2.75]
[1755442089176,2.78,194.29,194.18,2.75]
[1755442089378,2.78,194.26,194.18,2.75]
[1755442090976,2.78,194.24,194.15,2.75]
[1755442091182,4.55147933,194.23,194.15,2.75]
[1755442091486,2.78,194.22,194.15,2.75]
[1755442091785,2.78,194.24,194.18,2.75]
[1755442092078,2.78,194.29,194.18,2.75]
[1755442092281,2.78,194.27,194.18,2.75]
[1755442092476,2.78,194.31,194.21,2.75]
[1755442092677,7.33512786,194.3,194.23,2.60112805]
[1755442092878,2.78,194.3,194.24,2.75]
[1755442094178,4.56004205,194.29,194.24,2.75]
[1755442094376,2.78,194.3,194.24,2.75]
[1755442094584,2.78,194.28,194.24,2.75]
[1755442094781,2.78,194.27,194.25,2.75]
[1755442095486,2.78,194.26,194.25,2.75]
[1755442096189,2.78,194.34,194.23,2.75]
[1755442096392,2.78,194.32,194.23,2.75]
[1755442096585,2.78,194.3,194.22,2.60112805]
[1755442096788,8.25756951,194.29,194.21,2.75]
[1755442096984,8.25788131,194.28,194.21,2.75]
[1755442097291,2.78,194.26,194.19,2.75]
[1755442097487,2.91,194.24,194.19,2.75]
[1755442097791,2.91,194.24,194.2,3.02]
[1755442097990,2.91,194.23,194.16,2.60112805]
[1755442098285,2.91,194.23,194.17,3.02]
[1755442100586,2.91,194.31,194.2,3.02]
[1755442100784,2.91,194.29,194.2,3.02]
[1755442100986,8.26513883,194.28,194.2,3.02]
[1755442101288,2.91,194.27,194.23,3.02]
[1755442101788,2.91,194.26,194.23,3.02]
[1755442101993,2.91,194.35,194.23,3.02]
[1755442102194,2.91,194.33,194.23,3.02]
[1755442102392,8.267497,194.32,194.23,3.02]
[1755442102593,5.51112805,194.3,194.23,3.02]
[1755442102796,2.91,194.28,194.19,3.02]
[1755442103090,2.91,194.26,194.19,3.02]
[1755442103590,2.91,194.26,194.2,2.60112805]
[1755442103783,2.91,194.26,194.21,3.02]
[1755442104484,2.60112805,194.33,194.09,345.92]
[1755442104485,2.91,194.32,194.09,345.92]
[1755442104686,2.60112805,194.26,194.14,2.60112805]
[1755442104891,2.91,194.24,194.15,3.02]
[1755442105488,2.91,194.22,194.15,3.02]
[1755442112291,2.91,194.22,194.13,3.02]
[1755442113988,11.20814289,194.21,194.11,2.60112805]
[1755442114190,2.91,194.2,194.11,2.60112805]
[1755442114803,2.91,194.2,194.11,5.62112805]
[1755442116898,2.91,194.18,194.08,128.14]
[1755442117098,2.91,194.16,194.06,3.02]
[1755442117303,3.70366083,194.15,194.06,3.02]
[1755442117501,2.91,194.14,194.06,3.02]
[1755442117799,2.91,194.14,194.05,2.60112805]
[1755442118104,2.91,194.14,194.04,3.02]
[1755442118496,2.91,194.14,194.06,3.02]
[1755442121907,2.91,194.14,194.05,2.60112805]
[1755442122208,2.91,194.14,194.04,3.02]
[1755442122503,2.91,194.14,194.02,5.62112805]
[1755442123302,2.91,194.14,194.02,3.02]
[1755442123909,2.91,194.14,194.05,3.02]
[1755442127295,2.91,194.14,194.07,2.60112805]
[1755442127605,2.91,194.14,194.08,3.02]
[1755442127806,2.91,194.14,194.1,2.60112805]
[1755442128000,2.91,194.14,194.12,2.99]
[1755442128307,2.91,194.14,194.13,2.99]
[1755442129414,2.8,194.21,194.13,2.99]
[1755442129705,2.8,194.19,194.13,2.99]
[1755442132902,2.8,194.19,194.14,2.99]
[1755442133716,2.8,194.26,194.14,2.99]
[1755442133916,9.58920347,194.25,194.14,2.99]
[1755442134121,9.58920347,194.24,194.14,2.99]
[1755442134315,2.8,194.22,194.14,2.99]
[1755442134517,2.8,194.2,194.14,2.99]
[1755442135018,2.8,194.2,194.12,5.59112805]
[1755442135218,2.8,194.2,194.13,2.99]
[1755442135421,2.8,194.2,194.15,2.60112805]
[1755442135622,2.8,194.2,194.16,2.99]
[1755442135824,2.8,194.26,194.16,2.99]
[1755442136024,2.8,194.24,194.16,2.99]
[1755442136218,4.66991014,194.23,194.16,2.99]
[1755442136418,2.8,194.21,194.15,2.60112805]
[1755442136620,2.8,194.21,194.15,2.99]
[1755442136821,4.67006667,194.2,194.13,2.99]
[1755442137020,2.8,194.19,194.13,2.99]
[1755442139422,4.67351913,194.18,194.11,2.60112805]
[1755442139620,2.8,194.17,194.11,5.59112805]
[1755442141126,2.8,194.17,194.11,2.60112805]
[1755442141320,2.8,194.23,194.12,2.99]
[1755442141525,2.8,194.21,194.12,2.99]
[1755442141830,2.8,194.19,194.12,2.99]
[1755442142426,2.8,194.21,194.15,2.99]
[1755442143840,2.8,194.21,194.17,2.60112805]
[1755442144038,2.8,194.22,194.18,2.99]
[1755442144736,2.8,194.21,194.19,2.99]
[1755442145136,2.60112805,194.3,194.19,2.99]
[1755442145341,2.8,194.28,194.19,2.99]
[1755442145537,2.8,194.26,194.19,2.99]
[1755442145733,8.40283473,194.25,194.19,2.99]
[1755442145932,2.8,194.23,194.19,2.99]
[1755442146238,2.8,194.23,194.17,2.60112805]
[1755442147037,2.8,194.23,194.17,5.59112805]
[1755442147441,2.8,194.23,194.15,2.60112805]
[1755442147639,2.8,194.23,194.14,2.99]
[1755442147640,4.67997112,194.22,194.14,2.99]
[1755442147834,4.6805803,194.21,194.14,2.99]
[1755442148034,2.8,194.23,194.14,2.99]
[1755442148234,2.8,194.21,194.12,5.59112805]
[1755442148538,2.8,194.19,194.12,5.59112805]
[1755442150137,2.8,194.19,194.1,2.60112805]
[1755442150442,2.8,194.17,194.08,2.99]
[1755442150636,4.6846916,194.16,194.08,2.99]
[1755442150833,2.8,194.15,194.08,2.99]
[1755442152639,2.8,194.15,194.07,345.96]
[1755442152640,2.8,194.13,194.07,345.96]
[1755442153144,2.8,194.13,194.06,2.99]
[1755442155643,2.8,194.13,194.04,2.60112805]
[1755442155853,2.8,194.13,194.05,2.99]
[1755442157539,4.68823781,194.12,194.05,2.99]